Cogmind - Beta 15 @@@ ROGUE MODE // 2025.05.30 @ 17:31:32 Player: Cinder Result: Destroyed by Y-45 Defender with Heavy Assault Rifle Performance ------------- Evolutions (1) 500 Regions Visited (3) 600 Robots Destroyed (27) 135 Value Destroyed (591) 591 Prototype IDs (2) 40 Alien Tech Used (0) 0 Bonus (0) 0 TOTAL SCORE: 1866 Bonus ------- None Cogmind --------- Core Integrity 0/400 Matter 211/300 Energy 80/100 System Corruption 0% Temperature Cool (19) Movement Flying (35) Location -9/Materials Parts ------- > --- POWER (1) -------- (None) > --- PROPULSION (4) --- Cesium-ion Thruster > --- UTILITY (2) ------ (None) > --- WEAPON (2) ------- (None) > --- INVENTORY (5) ---- Light Ion Engine Titanium Leg Titanium Leg Cesium-ion Thruster Peak State ------------ > --- POWER ------------ Light Nuclear Core > --- PROPULSION ------- Aluminum Leg Aluminum Leg Titanium Leg Titanium Leg > --- UTILITY ---------- Small Storage Unit > --- WEAPON ----------- Light Assault Rifle Light Assault Rifle > --- INVENTORY -------- Light Ion Engine Titanium Leg Titanium Leg Compact Wheel Cesium-ion Thruster Cesium-ion Thruster Particle Cannon Grenade Launcher [Rating: 15] Favorites ----------- Power Ion Engine Engine Ion Engine Power Core Light Nuclear Core Propulsion Aluminum Leg Leg Aluminum Leg Utility Small Storage Unit Storage Small Storage Unit Weapon Light Assault Rifle Energy Gun Small Laser Ballistic Gun Light Assault Rifle Ballistic Cannon Light Cannon Launcher Grenade Launcher Build | -11 -10 -10 -9 ------- Run | Yrd Mat Min Mat Slots Evolved 2 | . . . 2 Power . | . . . . Propulsion 2 | . . . 2 Utility . | . . . . Weapon . | . . . . Parts Attached 23 | 6 1 6 10 Power 5 | 1 1 2 1 Engine 3 | 1 1 . 1 Core 2 | . . 2 . Reactor . | . . . . Propulsion 11 | 2 . 2 7 Treads . | . . . . Leg 10 | 2 . 2 6 Wheel . | . . . . Hover . | . . . . Flight 1 | . . . 1 Utility 1 | 1 . . . Device . | . . . . Storage 1 | 1 . . . Processor . | . . . . Hackware . | . . . . Protection . | . . . . Artifact . | . . . . Weapon 6 | 2 . 2 2 Energy Gun 1 | 1 . . . Energy Cannon . | . . . . Ballistic Gun 3 | 1 . 2 . Ballistic Cannon 1 | . . . 1 Launcher 1 | . . . 1 Special Weapon . | . . . . Impact Weapon . | . . . . Slashing Weapon . | . . . . Piercing Weapon . | . . . . Special Melee Weapon . | . . . . Unidentified Prototypes . | . . . . Parts Lost 12 | . . 1 11 Power 1 | . . . 1 Propulsion 5 | . . . 5 Utility 1 | . . . 1 Weapon 5 | . . 1 4 Highest Loss Streak 11 | . . 1 11 To Critical Strikes . | . . . . Average Backups 7 | 3 7 7 7 Power . | . 1 1 . Propulsion 4 | 2 4 4 4 Utility . | . . . . Weapon 1 | . 2 2 1 Tool/Special . | . . . . Unused Backups 14 | . 1 4 9 Power 1 | . . . 1 Propulsion 11 | . 1 4 6 Utility . | . . . . Weapon 2 | . . . 2 Tool/Special . | . . . . Average Slot Usage (%) 83 | . 83 85 82 Engine 8 | . 14 3 7 Core 3 | . . 10 2 Leg 35 | . 28 28 39 Storage 12 | . 14 14 11 Energy Gun 4 | . 13 10 . Ballistic Gun 18 | . 13 17 20 Peak Build Rating 15 | 6 7 9 15 Average Rating 9 | 4 6 8 12 On Entrance 5 | . 6 7 8 Naked Turns 2 | . . . 2 Heaviest Build 12 | 10 10 12 12 Greatest Support 40 | 20 20 20 40 Greatest Overweight (x) 1 | 1 . . . Average Overweight (x) . | . . . . Largest Inventory Capacity 8 | 8 8 8 8 Average Capacity 7 | 7 8 8 7 Most Carried 8 | 6 8 8 8 Average Carried 7 | 3 7 7 7 Final Capacity 8 | 8 8 8 5 Final Carried 8 | 6 8 8 4 Class Distribution -------------------- 59% | Scavenger-Mutant 40% | Mutant Dominant Class ---------------- Mutant | -10/Materials Mutant | -10/Mines Scavenger-Mutant | -9/Materials Resources | -11 -10 -10 -9 ----------- Run | Yrd Mat Min Mat Matter Collected 471 | 164 95 128 84 Remotely . | . . . . Salvage Created 623 | . 95 175 353 Parts 49 | . 9 16 24 Haulers Intercepted . | . . . . Recyclers Shooed 1 | . 1 . . Parts Field Recycled . | . . . . Retrieved Matter . | . . . . Parts Self-Destructed . | . . . . Prevented . | . . . . Kills | -11 -10 -10 -9 ------- Run | Yrd Mat Min Mat Combat Hostiles Destroyed 25 | . 4 8 13 Guns 17 | . 4 8 5 Cannons 5 | . . . 5 AOE 3 | . . . 3 Classes Destroyed 6 | . 2 . 4 Worker 1 | . . . 1 Watcher 1 | . . . 1 Swarmer 14 | . 3 6 5 Grunt 9 | . 1 2 6 Duelist 1 | . . . 1 Sentry 1 | . . . 1 Best Kill Streak 9 | . 3 6 9 Combat Bots Only 8 | . 3 6 8 Max Kills in Single Turn 2 | . 1 2 2 Gunslinging . | . . . . Exploded 2 | . . . 2 Melee . | . . . . Uniques/NPCs Destroyed . | . . . . Combat | -11 -10 -10 -9 -------- Run | Yrd Mat Min Mat Hostile Shots Fired 259 | . 34 38 187 Missed 69 | . 5 7 57 Hits 190 | . 29 31 130 Melee 1 | . . . 1 Projectile 189 | . 29 31 129 Critical Strikes 4 | . . 1 3 Damage Taken 2045 | . 258 306 1481 Core 509 | . 48 55 406 Absorbed by Shields . | . . . . Core Remaining (%) 79 | 100 . 58 . Volleys Fired 60 | . 16 14 30 Largest 2 | . 2 2 2 Hottest 60 | . 60 60 40 Shots Fired 102 | . 32 28 42 Gun 84 | . 32 28 24 Cannon 16 | . . . 16 Launcher 2 | . . . 2 Special . | . . . . Kinetic 70 | . 16 14 40 Thermal 30 | . 16 14 . Explosive 2 | . . . 2 Electromagnetic . | . . . . Robot Hit Streak 15 | . 5 5 15 Robot Miss Streak 4 | . 4 2 1 Penetration Max . | . . . . Secondary Targets 6 | . 2 3 1 Max Gunslinging Chain 1 | . 1 1 1 Shots Hit Robots 69 | . 16 17 36 Core Hits 48 | . 8 12 28 Critical Kills 1 | . . . 1 Critical Parts Destroyed . | . . . . Critical Strikes 1 | . . . 1 Destroy 1 | . . . 1 Melee Attacks . | . . . . Impact . | . . . . Slashing . | . . . . Piercing . | . . . . Sneak Attacks . | . . . . Combat Hostiles . | . . . . Follow-up Attacks . | . . . . Damage Inflicted 1168 | . 146 168 854 Guns 465 | . 146 168 151 Cannons 282 | . . . 282 Explosions 417 | . . . 417 Melee . | . . . . Ramming 4 | . . . 4 Kinetic 593 | . 69 91 433 Thermal 154 | . 77 77 . Explosive 417 | . . . 417 Electromagnetic . | . . . . Impact . | . . . . Slashing . | . . . . Piercing . | . . . . Highest Corruption . | . . . . Average Corruption . | . . . . Corruption Purged . | . . . . Corruption Blocked . | . . . . Overload Shots . | . . . . Overflow Damage 11 | . . . 11 Projectiles . | . . . . Explosions 11 | . . . 11 Melee . | . . . . Knockbacks 6 | . . . 6 Impact . | . . . . Kinetic 5 | . . . 5 Secondary 1 | . . . 1 Self-Inflicted Damage 55 | . . . 55 Shots 2 | . . . 2 Rammed . | . . . . Targets Rammed 7 | . 2 . 5 Kicked 7 | . 2 . 5 Crushed . | . . . . Highest Temperature 107 | . 60 107 17 Average Temperature 37 | . 28 52 7 Received Heat Transfer 519 | . 27 87 405 Siege Activations . | . . . . Martial Activations . | . . . . Shielding Activations . | . . . . Robots Disrupted . | . . . . Combat Hostiles . | . . . . Robots Corrupted . | . . . . Combat Hostiles . | . . . . Parts Fried . | . . . . Impact Corruptions . | . . . . Robots Melted . | . . . . Combat Hostiles . | . . . . Parts Melted . | . . . . Heat Transferred 350 | . 175 175 . Parts Sabotaged . | . . . . Parts Stolen . | . . . . Parts Stripped . | . . . . Power Chain Reactions . | . . . . Alert | -11 -10 -10 -9 ------- Run | Yrd Mat Min Mat Maximum Alert Level . | . . . . Low Security (%) 100 | 100 100 100 100 Level 1 . | . . . . Level 2 . | . . . . Level 3 . | . . . . Level 4 . | . . . . Level 5 . | . . . . High Security . | . . . . Max Security . | . . . . Peak Influence 172 | . 52 160 172 Initial 50 | . . 10 50 Average 64 | . 22 88 82 Influence Increases 797 | . 127 190 480 Destroy 0b10 Robot/C 500 | . 80 160 260 Destroy 0b10 Robot/NC 10 | . . . 10 Destroy Leader 92 | . 20 30 42 Successful Hack 17 | . 12 . 5 Disable Machine 15 | . . . 15 Destroy Structure 13 | . . . 13 Partial Spotted 15 | . . . 15 Lose Combat Pursuer 135 | . 15 . 120 Influence Decreases 625 | . 100 87 438 Entered New Map 97 | . . 17 80 Time Decay 422 | . 100 60 262 Lost Part 106 | . . 10 96 Squads Dispatched 2 | . . . 2 Investigation . | . . . . Extermination . | . . . . Reinforcement 2 | . . . 2 Assault . | . . . . Garrison . | . . . . Intercept . | . . . . Searches Triggered . | . . . . Construction Impeded . | . . . . Haulers Reinforced . | . . . . Active Scanning Responses . | . . . . Cargo Convoy Interrupts . | . . . . Stealth | -11 -10 -10 -9 --------- Run | Yrd Mat Min Mat Distress Signals 1 | . 1 . . Communications Jammed . | . . . . Distress Signals . | . . . . Times Spotted 48 | . 7 9 32 Peak Tracking Total 14 | . 3 6 14 Tactical Retreats 6 | . 1 . 5 Traps | -11 -10 -10 -9 ------- Run | Yrd Mat Min Mat Traps Triggered 2 | . 2 . . Indirectly . | . . . . Trap Hack Attempts . | . . . . Triggered . | . . . . Disarmed . | . . . . Reprogrammed . | . . . . Reused . | . . . . Traps Extracted . | . . . . Installed . | . . . . Triggered . | . . . . Machines | -11 -10 -10 -9 ---------- Run | Yrd Mat Min Mat Machines Disabled 1 | . . . 1 Max in Single Turn 1 | . . . 1 Machines Repaired . | . . . . Machines Dismantled . | . . . . Machines Sabotaged . | . . . . Overloaded Fab Kills . | . . . . Hacking | -11 -10 -10 -9 --------- Run | Yrd Mat Min Mat Machines Accessed 4 | . 1 . 3 Terminals 3 | . 1 . 2 Fabricators . | . . . . Repair Stations . | . . . . Recycling Units 1 | . . . 1 Scanalyzers . | . . . . Garrison Access . | . . . . Total Hacks 10 | . 3 . 7 Successful 5 | . 2 . 3 Failed 5 | . 1 . 4 Catastrophic 2 | . . . 2 Database Lockouts . | . . . . Manual . | . . . . Terminals 8 | . 3 . 5 Fabricators . | . . . . Repair Stations . | . . . . Recycling Units 2 | . . . 2 Scanalyzers . | . . . . Garrison Access . | . . . . Terminal Hacks 4 | . 2 . 2 Prototype ID Bank 1 | . . . 1 Surveillance Status 1 | . 1 . . Hauler Manifests 1 | . 1 . . Zone Layout 1 | . . . 1 Fabricator Hacks . | . . . . Repair Station Hacks . | . . . . Recycling Unit Hacks 1 | . . . 1 Retrieve Matter 1 | . . . 1 Scanalyzer . | . . . . Garrison Access Hacks . | . . . . Unauthorized Hacks . | . . . . Terminals . | . . . . Fabricators . | . . . . Repair Stations . | . . . . Recycling Units . | . . . . Scanalyzers . | . . . . Garrison Access . | . . . . Data Cores Recovered . | . . . . Used . | . . . . Hacking Detections 3 | . . . 3 Full Trace Events 1 | . . . 1 Feedback Events . | . . . . Feedback Blocked . | . . . . Robot Schematics Acquired . | . . . . Robots Built . | . . . . Authchips . | . . . . Time . | . . . . Total Robot Build Rating . | . . . . Part Schematics Acquired . | . . . . Parts Built . | . . . . Authchips . | . . . . Time . | . . . . Total Part Build Rating . | . . . . Parts Repaired . | . . . . Time . | . . . . Parts Recycled . | . . . . Recycled Matter . | . . . . Retrieved Matter . | . . . . Retrieved Components . | . . . . Parts Scanalyzed . | . . . . Part Schematics Acquired . | . . . . Parts Damaged . | . . . . Bothacking | -11 -10 -10 -9 ------------ Run | Yrd Mat Min Mat Used RIF Installer . | . . . . Robots Hacked . | . . . . Non-combat . | . . . . Combat . | . . . . Robot Hacks Applied . | . . . . Relay Couplers Released . | . . . . Fabnet Peak Effective % . | . . . . Robots Rewired . | . . . . Allies Hacked . | . . . . Hacks Repelled . | . . . . Allies | -11 -10 -10 -9 -------- Run | Yrd Mat Min Mat Total Allies . | . . . . Largest Group . | . . . . Highest-Rated Group . | . . . . Highest-Rated Ally . | . . . . Total Orders . | . . . . Ally Attacks . | . . . . Total Damage . | . . . . Kills . | . . . . Allies Corrupted . | . . . . Allies Melted . | . . . . Intel | -11 -10 -10 -9 ------- Run | Yrd Mat Min Mat Active Infowar (turns) . | . . . . Robot Analysis Total . | . . . . Derelict Logs Recovered . | . . . . Drone Launches . | . . . . Drone Recoveries . | . . . . Exploration | -11 -10 -10 -9 ------------- Run | Yrd Mat Min Mat Turns Passed 1027 | 65 242 139 581 Spaces Moved 493 | 44 133 66 250 Core 6 | 6 . . . Treads . | . . . . Legs 487 | 38 133 66 250 Wheels . | . . . . Hover . | . . . . Flight . | . . . . Fastest Speed 50 | 50 120 120 120 Average Speed 119 | 112 120 120 120 Slowest Speed 130 | 120 120 120 130 Overloaded Moves . | . . . . Propulsion Burnouts . | . . . . Robots Hopped . | . . . . Potential Cave-ins . | . . . . Cave-ins Triggered . | . . . . Exploration Rate (%) 20 | 4 27 18 32 Regions Visited 3 Branch Regions 1 Pre-discovered Areas . | . . . . Known Exits Taken . | . . . . Unknown Exits Taken 3 | 1 1 1 . Scrap Searched 1 | . . 1 . Spaces Dug . | . . . . Terrain Destroyed 12 | . . . 12 Melee . | . . . . Projectile . | . . . . AOE 12 | . . . 12 Terrain Rammed . | . . . . Walls Destroyed . | . . . . Machines Disabled . | . . . . Actions | -11 -10 -10 -9 --------- Run | Yrd Mat Min Mat Total 841 | 57 185 103 496 Wait 209 | . 25 . 184 Move 490 | 43 132 65 250 Hop . | . . . . Pick Up 28 | 8 4 8 8 Fast Attach 10 | 4 3 . 3 Attach 10 | 2 . 2 6 Detach . | . . . . Swap 7 | . 1 5 1 Drop 20 | . 2 9 9 Fire 60 | . 16 14 30 Melee . | . . . . Ram . | . . . . Kick 7 | . 2 . 5 Crush . | . . . . Escape Stasis . | . . . . Rewire . | . . . . Trap . | . . . . Miscellaneous . | . . . . Route ------- -11/Scrapyard -10/Materials -10/Mines -9/Materials History --------- Turn | Location | Event 11 | -11/Scrapyard | Discovered new exit (range 15) 66 | -11/Scrapyard | Entered Materials 303 | -10/Materials | Discovered new exit (range 4) 308 | -10/Materials | Entered Mines 312 | -10/Mines | Build established: Mutant 317 | -10/Mines | Met a Derelict bent on vengeance 434 | -10/Mines | Discovered new exit (range 12) 447 | -10/Mines | Entered Materials 447 | -9/Materials | Evolved 2 slots: Propulsion x2 688 | -9/Materials | Build established: Scavenger-Mutant 1013 | -9/Materials | Core integrity fell below 50% 1027 | -9/Materials | Core integrity fell below 20% 1028 | -9/Materials | Destroyed by Y-45 Defender with Heavy Assault Rifle Last Messages --------------- 01005_ S-10 Pest destroyed. 01007_ Critical hit (Burn: +37). 01009_ K-01 Serf collects debris. 01013_ L-31 Rogue knocked back. 01013_ Titanium Leg destroyed. 01014_ Critical hit (Burn: +37). 01015_ L-31 Rogue knocked back. 01016_ K-01 Serf collects debris. 01019_ L-31 Rogue destroyed. 01019_ Aluminum Leg destroyed. 01022_ Lgt. Cannon destroyed. 01023_ Titanium Leg destroyed. 01024_ G-34 Mercenary destroyed. 01024_ K-01 Serf destroyed. 01024_ Sml. Storage Unit destroyed. 01024_ Destroyed Sml. Storage Unit. 01026_ G-34 Mercenary destroyed. 01026_ Grenade Launcher destroyed. 01026_ Destroyed Grenade Launcher. 01026_ G-34 Mercenary destroyed. Map ----- +----------------------------------------------------+ | ??????????????????????????????????? | | ??????????????????????????????????? | | ??????????????????????????????????? | | ??????????????????????????????????? | | ??????????????????????????????????? | | ??????????????????????????????????? | | ??????????????????????????????????? | | ??????????????????????????????????? | | ????????????????? ??????????????? | | ????????????????# #?????????????? | | ????????????????# #?????????????? | | ????????????????# #?????????????? | | ????????????????# #?????????????? | | ?????###+##????## ##????????????? | | ?????# ##### #????????????? | | ?????# #??????[?????? | | ?????+ ? +???" ??????? | | ?????# ??? #??"" ???????? | | ?????# ????# #?"""????????? | | ??????# ####### #? ?????????? | | ??????# # # r ##+###????????? | | ??????# + " # ##???????? | | ??????# # T +% % % ##??????? | | ??????# # "%# !%%g #??????? | | ??????# # %##### =Y #??????? | | ####+## # """ #??#=[%g @ #??????? | | / """ #??#%=Y% ! #??????? | | # """ #??#* g= #??????? | | ^^ =%* # #??# " #??????? | | ###+####### ! #??# """" #??????? | | T ## #??# """" ##??????? | | ### #??########???????? | | #?#######?????????????????? | | #?????????????????????????? | | #?????????????????????????? | | """"" #?????????????????????????? | | """"" #?????????????????????????? | | """"" #?????????????????????????? | | #########?????????????????????????? | | ??????????????????????????????????? | | ??????????????????????????????????? | | ??????????????????????????????????? | | ??????????????????????????????????? | | ??????????????????????????????????? | | ??????????????????????????????????? | | ??????????????????????????????????? | | ??????????????????????????????????? | | ??????????????????????????????????? | | ??????????????????????????????????? | | ??????????????????????????????????? | +----------------------------------------------------+ Best States ------------- Heat Dissipation 28 Energy Generation 14 Energy Capacity 250 Matter Stores 300 Matter Capacity 300 Sight Range 16 Terrain Scan Density 10 Evasion (%) 55 Item Schematics ----------------- None Robot Schematics ------------------ None Fabricated ------------ Nothing Repaired ---------- Nothing Alien Tech Used ----------------- None Achievements -------------- None Challenges ------------ None Game ------ Seed MinesnifferChipScreen Manual? 0 Play Time 00:21:17 Cumulative 44.2 hours Start 2025.05.30 @ 15:29:38 End 2025.05.30 @ 17:31:32 Sessions 1 Manual Loads 0 Difficulty Rogue Special Mode None Game No. 89 Rogue 89 Adventurer 0 Explorer 0 Win Type - Total 0 Types 0/0/0/0/0/0/0/0/0/0 Lore% 19 Gallery% 33 Achievement% 27 Wizard Run 0 Options --------- Layout 1 ASCII 0 Keyboard 0 Movement Arrows Keybinds 0 Fullscreen 2 Font 24/Smallcaps Map View 50x35 Zoom Use 0% Tactical HUD 1 Map Filters NONE Filters NONE Steam 1 RUN: 903574c6-3d45-4a95-b098-72ee299845b0